fUST/lending_fUST_20260614
["ID","MTS","AMOUNT","RATE_DAILY","PERIOD"]
[424999329,1781400646000,-151.0,0.00024,2]
[424999330,1781400646000,-151.452228,0.00024,2]
[424999332,1781400646000,-151.0,0.00024042,2]
[424999334,1781400646000,-151.0,0.00024042,2]
[424999333,1781400646000,-151.0,0.00024042,2]
[424999335,1781400646000,-151.0,0.00024042,2]
[424999336,1781400646000,-151.0,0.00024043,2]
[424999337,1781400646000,-151.0,0.00024043,2]
[424999338,1781400646000,-151.0,0.00024043,2]
[424999326,1781400646000,-151.0,0.00024,2]
[424999340,1781400646000,-151.0,0.00024043,2]
[424999341,1781400646000,-151.0,0.00024043,2]
[424999354,1781400646000,-178.7964,0.00024043,2]
[424999351,1781400646000,-178.7964,0.00024043,2]
[424999348,1781400646000,-178.7964,0.00024043,2]
[424999350,1781400646000,-178.7964,0.00024043,2]
[424999345,1781400646000,-222.350227,0.00024043,2]
[424999349,1781400646000,-178.7964,0.00024043,2]
[424999346,1781400646000,-178.7964,0.00024043,2]
[424999344,1781400646000,-151.0,0.00024043,2]
[424999343,1781400646000,-151.0,0.00024043,2]
[424999342,1781400646000,-151.0,0.00024043,2]
[424999339,1781400646000,-151.0,0.00024043,2]
[424999352,1781400646000,-178.7964,0.00024043,2]
[424999347,1781400646000,-178.7964,0.00024043,2]
[424999435,1781400647000,-500.0,0.00024656,2]
[424999438,1781400647000,-500.0,0.00024656,2]
[424999439,1781400647000,-500.0,0.00024656,2]
[424999437,1781400647000,-500.0,0.00024656,2]
[424999436,1781400647000,-500.0,0.00024656,2]
[424999430,1781400647000,-500.0,0.00024656,2]
[424999433,1781400647000,-500.0,0.00024656,2]
[424999431,1781400647000,-500.0,0.00024656,2]
[424999432,1781400647000,-500.0,0.00024656,2]
[424999427,1781400647000,-500.0,0.00024656,2]
[424999442,1781400647000,-500.0,0.00024656,2]
[424999424,1781400647000,-500.0,0.00024656,2]
[424999434,1781400647000,-500.0,0.00024656,2]
[424999441,1781400647000,-500.0,0.00024656,2]
[424999450,1781400647000,-500.0,0.00024656,2]
[424999444,1781400647000,-500.0,0.00024656,2]
[424999443,1781400647000,-500.0,0.00024656,2]
[424999446,1781400647000,-500.0,0.00024656,2]
[424999445,1781400647000,-500.0,0.00024656,2]
[424999447,1781400647000,-500.0,0.00024656,2]
[424999448,1781400647000,-500.0,0.00024656,2]
[424999449,1781400647000,-500.0,0.00024656,2]
[424999452,1781400647000,-500.0,0.00024656,2]
[424999451,1781400647000,-500.0,0.00024656,2]
[424999453,1781400647000,-500.0,0.00024656,2]
[424999455,1781400647000,-1346.7668,0.00024657,2]
[424999454,1781400647000,-376.41247994,0.00024656,2]
[424999423,1781400647000,-500.0,0.00024656,2]
[424999458,1781400647000,-500.0,0.00024657,2]
[424999440,1781400647000,-615.59338172,0.00024656,2]
[424999428,1781400647000,-500.0,0.00024656,2]
[424999417,1781400647000,-223.51,0.00024369,2]
[424999425,1781400647000,-500.0,0.00024656,2]
[424999457,1781400647000,-204.867807,0.00024657,2]
[424999388,1781400647000,-2466.29,0.00024142,2]
[424999390,1781400647000,-2466.29,0.00024142,2]
[424999392,1781400647000,-2466.29,0.00024142,2]
[424999394,1781400647000,-2466.29,0.00024142,2]
[424999396,1781400647000,-2466.29,0.00024142,2]
[424999398,1781400647000,-2466.29,0.00024142,2]
[424999402,1781400647000,-2466.29,0.00024142,2]
[424999400,1781400647000,-2466.29,0.00024142,2]
[424999404,1781400647000,-2466.29,0.00024142,2]
[424999403,1781400647000,-2466.29,0.00024142,2]
[424999405,1781400647000,-2466.29,0.00024142,2]
[424999406,1781400647000,-2466.29,0.00024142,2]
[424999408,1781400647000,-2466.29,0.00024142,2]
[424999407,1781400647000,-2466.29,0.00024142,2]
[424999409,1781400647000,-2466.46496409,0.00024142,2]
[424999411,1781400647000,-157.79,0.00024185,2]
[424999416,1781400647000,-758.0,0.00024326,2]
[424999410,1781400647000,-152.0,0.00024149,30]
[424999415,1781400647000,-175.01,0.00024243,2]
[424999413,1781400647000,-151.0,0.0002419,3]
[424999412,1781400647000,-151.0,0.0002419,3]
[424999414,1781400647000,-212.42385324,0.00024243,2]
[424999419,1781400647000,-160.0,0.00024615,3]
[424999418,1781400647000,-181.26,0.00024519,2]
[424999420,1781400647000,-513.72218776,0.00024656,2]
[424999422,1781400647000,-500.0,0.00024656,2]
[424999421,1781400647000,-500.0,0.00024656,2]
[424999426,1781400647000,-500.0,0.00024656,2]
[424999429,1781400647000,-500.0,0.00024656,2]
[424999459,1781400647000,-502.04906903,0.00024657,2]
[424999462,1781400647000,-500.0,0.00024657,2]
[424999461,1781400647000,-500.0,0.00024657,2]
[424999490,1781400647000,-559.46393413,0.00024657,2]
[424999491,1781400647000,-500.0,0.00024657,2]
[424999496,1781400647000,-500.0,0.00024657,2]
[424999497,1781400647000,-500.0,0.00024657,2]
[424999498,1781400647000,-1066.78,0.00024657,2]
[424999500,1781400647000,-500.0,0.00024657,2]
[424999506,1781400647000,-500.55620742,0.00024657,2]
[424999507,1781400647000,-500.0,0.00024657,2]
[424999501,1781400647000,-500.0,0.00024657,2]
[424999499,1781400647000,-500.0,0.00024657,2]
[424999505,1781400647000,-500.0,0.00024657,2]
[424999508,1781400647000,-516.87368116,0.00024657,2]
[424999502,1781400647000,-500.0,0.00024657,2]
[424999503,1781400647000,-1500.78,0.00024657,2]
[424999504,1781400647000,-500.0,0.00024657,2]
[424999509,1781400647000,-500.0,0.00024657,2]
[424999510,1781400647000,-500.0,0.00024657,2]
[424999511,1781400647000,-500.0,0.00024657,2]
[424999512,1781400647000,-500.0,0.00024657,2]
[424999513,1781400647000,-500.0,0.00024657,2]
[424999516,1781400647000,-500.0,0.00024657,2]
[424999521,1781400647000,-500.0,0.00024657,2]
[424999519,1781400647000,-500.0,0.00024657,2]
[424999517,1781400647000,-369.74697408,0.00024657,2]
[424999515,1781400647000,-500.0,0.00024657,2]
[424999514,1781400647000,-500.0,0.00024657,2]
[424999518,1781400647000,-509.21448006,0.00024657,2]
[424999520,1781400647000,-500.0,0.00024657,2]
[424999456,1781400647000,-7763.839454,0.00024657,2]
[424999488,1781400647000,-211.75444022,0.00024657,2]
[424999489,1781400647000,-500.0,0.00024657,2]
[424999522,1781400647000,-500.0,0.00024657,2]
[424999486,1781400647000,-765.65,0.00024657,2]
[424999487,1781400647000,-500.0,0.00024657,2]
[424999460,1781400647000,-500.0,0.00024657,2]
[424999464,1781400647000,-501.19124816,0.00024657,2]
[424999463,1781400647000,-163.20451386,0.00024657,2]
[424999467,1781400647000,-500.0,0.00024657,2]
[424999468,1781400647000,-500.0,0.00024657,2]
[424999465,1781400647000,-500.0,0.00024657,2]
[424999466,1781400647000,-500.88361297,0.00024657,2]
[424999469,1781400647000,-500.0,0.00024657,2]
[424999470,1781400647000,-501.83,0.00024657,2]
[424999471,1781400647000,-501.36100259,0.00024657,2]
[424999472,1781400647000,-500.0,0.00024657,2]
[424999473,1781400647000,-500.0,0.00024657,2]
[424999474,1781400647000,-500.0,0.00024657,2]
[424999523,1781400647000,-500.0,0.00024657,2]
[424999476,1781400647000,-502.57099829,0.00024657,2]
[424999475,1781400647000,-500.0,0.00024657,2]
[424999492,1781400647000,-500.0,0.00024657,2]
[424999494,1781400647000,-500.0,0.00024657,2]
[424999493,1781400647000,-829.9,0.00024657,2]
[424999484,1781400647000,-500.0,0.00024657,2]
[424999483,1781400647000,-500.0,0.00024657,2]
[424999495,1781400647000,-500.0,0.00024657,2]
[424999482,1781400647000,-501.73464814,0.00024657,2]
[424999480,1781400647000,-250.71002296,0.00024657,2]
[424999478,1781400647000,-502.03069326,0.00024657,2]
[424999481,1781400647000,-500.83796108,0.00024657,2]
[424999477,1781400647000,-500.0,0.00024657,2]
[424999479,1781400647000,-501.60028759,0.00024657,2]
[424999485,1781400647000,-500.0,0.00024657,2]
[424999564,1781400648000,-500.0,0.00024657,2]
[424999567,1781400648000,-500.0,0.00024657,2]
[424999565,1781400648000,-500.0,0.00024657,2]
[424999562,1781400648000,-500.0,0.00024657,2]
[424999554,1781400648000,-500.0,0.00024657,2]
[424999563,1781400648000,-500.0,0.00024657,2]
[424999556,1781400648000,-364.1293988,0.00024657,2]
[424999561,1781400648000,-500.0,0.00024657,2]
[424999559,1781400648000,-500.0,0.00024657,2]
[424999558,1781400648000,-500.0,0.00024657,2]
[424999560,1781400648000,-500.0,0.00024657,2]
[424999557,1781400648000,-500.0,0.00024657,2]
[424999575,1781400648000,-500.0,0.00024657,2]
[424999568,1781400648000,-500.0,0.00024657,2]
[424999577,1781400648000,-500.0,0.00024657,2]
[424999576,1781400648000,-501.351131,0.00024657,2]
[424999570,1781400648000,-500.0,0.00024657,2]
[424999569,1781400648000,-500.0,0.00024657,2]
[424999572,1781400648000,-500.0,0.00024657,2]
[424999571,1781400648000,-500.0,0.00024657,2]
[424999574,1781400648000,-500.0,0.00024657,2]
[424999573,1781400648000,-500.0,0.00024657,2]
[424999578,1781400648000,-500.0,0.00024657,2]
[424999579,1781400648000,-501.27425162,0.00024657,2]
[424999555,1781400648000,-500.0,0.00024657,2]
[424999580,1781400648000,-520.06759833,0.00024657,2]
[424999566,1781400648000,-500.0,0.00024657,2]
[424999553,1781400648000,-540.75,0.00024657,2]
[424999539,1781400648000,-500.0,0.00024657,2]
[424999550,1781400648000,-500.0,0.00024657,2]
[424999581,1781400648000,-500.0,0.00024657,2]
[424999526,1781400648000,-502.30941243,0.00024657,2]
[424999524,1781400648000,-500.0,0.00024657,2]
[424999525,1781400648000,-500.0,0.00024657,2]
[424999531,1781400648000,-500.0,0.00024657,2]
[424999529,1781400648000,-500.0,0.00024657,2]
[424999530,1781400648000,-500.0,0.00024657,2]
[424999528,1781400648000,-500.0,0.00024657,2]
[424999527,1781400648000,-502.42510889,0.00024657,2]
[424999532,1781400648000,-500.0,0.00024657,2]
[424999533,1781400648000,-500.0,0.00024657,2]
[424999535,1781400648000,-500.0,0.00024657,2]
[424999534,1781400648000,-501.12410976,0.00024657,2]
[424999536,1781400648000,-500.0,0.00024657,2]
[424999538,1781400648000,-500.0,0.00024657,2]
[424999537,1781400648000,-500.0,0.00024657,2]
[424999540,1781400648000,-500.0,0.00024657,2]
[424999543,1781400648000,-500.0,0.00024657,2]
[424999542,1781400648000,-500.0,0.00024657,2]
[424999544,1781400648000,-500.0,0.00024657,2]
[424999541,1781400648000,-500.0,0.00024657,2]
[424999548,1781400648000,-500.0,0.00024657,2]
[424999545,1781400648000,-686.77,0.00024657,2]
[424999549,1781400648000,-500.0,0.00024657,2]
[424999546,1781400648000,-500.0,0.00024657,2]
[424999547,1781400648000,-500.0,0.00024657,2]
[424999551,1781400648000,-500.0,0.00024657,2]
[424999552,1781400648000,-833.67,0.00024657,2]
[424999583,1781400648000,-501.01628324,0.00024657,2]
[424999597,1781400648000,-500.0,0.00024657,2]
[424999585,1781400648000,-501.98422291,0.00024657,2]
[424999614,1781400648000,-500.0,0.00024657,2]
[424999618,1781400648000,-553.95474139,0.00024657,2]
[424999619,1781400648000,-500.0,0.00024657,2]
[424999620,1781400648000,-501.77248507,0.00024657,2]
[424999622,1781400648000,-500.0,0.00024657,2]
[424999621,1781400648000,-500.0,0.00024657,2]
[424999623,1781400648000,-500.0,0.00024657,2]
[424999625,1781400648000,-500.0,0.00024657,2]
[424999624,1781400648000,-500.0,0.00024657,2]
[424999626,1781400648000,-500.0,0.00024657,2]
[424999629,1781400648000,-500.0,0.00024657,2]
[424999628,1781400648000,-500.0,0.00024657,2]
[424999615,1781400648000,-500.0,0.00024657,2]
[424999627,1781400648000,-500.0,0.00024657,2]
[424999586,1781400648000,-500.0,0.00024657,2]
[424999633,1781400648000,-500.0,0.00024657,2]
[424999632,1781400648000,-623.28432792,0.00024657,2]
[424999635,1781400648000,-500.0,0.00024657,2]
[424999634,1781400648000,-1000.0,0.00024657,2]
[424999636,1781400648000,-500.0,0.00024657,2]
[424999640,1781400648000,-500.0,0.00024657,2]
[424999639,1781400648000,-500.0,0.00024657,2]
[424999637,1781400648000,-500.0,0.00024657,2]
[424999642,1781400648000,-500.43547568,0.00024657,2]
[424999641,1781400648000,-500.0,0.00024657,2]
[424999638,1781400648000,-500.49955312,0.00024657,2]
[424999630,1781400648000,-583.76,0.00024657,2]
[424999611,1781400648000,-500.0,0.00024657,2]
[424999631,1781400648000,-500.0,0.00024657,2]
[424999616,1781400648000,-500.0,0.00024657,2]
[424999617,1781400648000,-1220.72,0.00024657,2]
[424999582,1781400648000,-500.0,0.00024657,2]
[424999584,1781400648000,-500.0,0.00024657,2]
[424999587,1781400648000,-500.0,0.00024657,2]
[424999589,1781400648000,-500.0,0.00024657,2]
[424999588,1781400648000,-500.43806931,0.00024657,2]
[424999592,1781400648000,-500.0,0.00024657,2]
[424999593,1781400648000,-500.0,0.00024657,2]
[424999591,1781400648000,-500.96526279,0.00024657,2]
[424999596,1781400648000,-500.0,0.00024657,2]
[424999594,1781400648000,-500.0,0.00024657,2]
[424999595,1781400648000,-501.47895524,0.00024657,2]
[424999599,1781400648000,-500.0,0.00024657,2]
[424999590,1781400648000,-500.0,0.00024657,2]
[424999598,1781400648000,-500.0,0.00024657,2]
[424999613,1781400648000,-500.0,0.00024657,2]
[424999600,1781400648000,-500.0,0.00024657,2]
[424999612,1781400648000,-503.75217971,0.00024657,2]
[424999609,1781400648000,-500.0,0.00024657,2]
[424999607,1781400648000,-500.0,0.00024657,2]
[424999606,1781400648000,-500.0,0.00024657,2]
[424999610,1781400648000,-500.0,0.00024657,2]
[424999608,1781400648000,-500.0,0.00024657,2]
[424999602,1781400648000,-500.0,0.00024657,2]
[424999604,1781400648000,-503.20348231,0.00024657,2]
[424999603,1781400648000,-500.0,0.00024657,2]
[424999601,1781400648000,-500.0,0.00024657,2]
[424999605,1781400648000,-500.0,0.00024657,2]
[424999665,1781400649000,-501.13341147,0.00024657,2]
[424999667,1781400649000,-500.0,0.00024657,2]
[424999664,1781400649000,-500.0,0.00024657,2]
[424999661,1781400649000,-500.0,0.00024657,2]
[424999663,1781400649000,-279.93495669,0.00024657,2]
[424999668,1781400649000,-500.0,0.00024657,2]
[424999666,1781400649000,-501.02287609,0.00024657,2]
[424999673,1781400649000,-500.0,0.00024657,2]
[424999672,1781400649000,-500.0,0.00024657,2]
[424999671,1781400649000,-558.99241411,0.00024657,2]
[424999670,1781400649000,-500.0,0.00024657,2]
[424999677,1781400649000,-500.0,0.00024657,2]
[424999676,1781400649000,-500.0,0.00024657,2]
[424999662,1781400649000,-513.83,0.00024657,2]
[424999669,1781400649000,-302.22908382,0.00024657,2]
[424999660,1781400649000,-500.0,0.00024657,2]
[424999645,1781400649000,-500.0,0.00024657,2]
[424999659,1781400649000,-529.84,0.00024657,2]
[424999674,1781400649000,-501.13719798,0.00024657,2]
[424999644,1781400649000,-500.0,0.00024657,2]
[424999643,1781400649000,-500.0,0.00024657,2]
[424999647,1781400649000,-500.0,0.00024657,2]
[424999653,1781400649000,-500.0,0.00024657,2]
[424999646,1781400649000,-500.0,0.00024657,2]
[424999654,1781400649000,-501.04415105,0.00024657,2]
[424999655,1781400649000,-500.0,0.00024657,2]
[424999648,1781400649000,-500.0,0.00024657,2]
[424999649,1781400649000,-500.0,0.00024657,2]
[424999650,1781400649000,-500.0,0.00024657,2]
[424999651,1781400649000,-500.0,0.00024657,2]
[424999652,1781400649000,-501.29043423,0.00024657,2]
[424999656,1781400649000,-500.0,0.00024657,2]
[424999657,1781400649000,-500.0,0.00024657,2]
[424999658,1781400649000,-500.0,0.00024657,2]
[424999675,1781400649000,-425.7741907,0.00024657,2]
[424999678,1781400649000,-500.0,0.00024657,2]
[424999700,1781400649000,-500.0,0.00024657,2]
[424999699,1781400649000,-500.0,0.00024657,2]
[424999714,1781400649000,-290.0346828,0.00024657,2]
[424999701,1781400649000,-500.0,0.00024657,2]
[424999707,1781400649000,-500.0,0.00024657,2]
[424999706,1781400649000,-500.0,0.00024657,2]
[424999708,1781400649000,-500.0,0.00024657,2]
[424999698,1781400649000,-500.0,0.00024657,2]
[424999704,1781400649000,-500.0,0.00024657,2]
[424999702,1781400649000,-500.0,0.00024657,2]
[424999710,1781400649000,-500.0,0.00024657,2]
[424999709,1781400649000,-500.0,0.00024657,2]
[424999711,1781400649000,-500.0,0.00024657,2]
[424999713,1781400649000,-838.725157,0.00024657,2]
[424999712,1781400649000,-500.0,0.00024657,2]
[424999705,1781400649000,-542.65,0.00024657,2]
[424999697,1781400649000,-501.25375957,0.00024657,2]
[424999703,1781400649000,-500.0,0.00024657,2]
[424999695,1781400649000,-500.0,0.00024657,2]
[424999679,1781400649000,-500.0,0.00024657,2]
[424999682,1781400649000,-541.02069319,0.00024657,2]
[424999680,1781400649000,-500.0,0.00024657,2]
[424999685,1781400649000,-500.0,0.00024657,2]
[424999684,1781400649000,-500.0,0.00024657,2]
[424999696,1781400649000,-500.0,0.00024657,2]
[424999686,1781400649000,-500.0,0.00024657,2]
[424999687,1781400649000,-493.30207418,0.00024657,2]
[424999683,1781400649000,-501.47589953,0.00024657,2]
[424999690,1781400649000,-500.0,0.00024657,2]
[424999689,1781400649000,-804.91,0.00024657,2]
[424999694,1781400649000,-490.74916664,0.00024657,2]
[424999688,1781400649000,-500.0,0.00024657,2]
[424999693,1781400649000,-1772.47,0.00024657,2]
[424999692,1781400649000,-500.51923663,0.00024657,2]
[424999691,1781400649000,-500.0,0.00024657,2]
[424999681,1781400649000,-500.0,0.00024657,2]
[424999715,1781400787000,-152.0,0.00023151,7]
[424999716,1781400826000,10000.0,0.0002411,30]
[424999717,1781400944000,10000.0,0.0002411,30]
[424999718,1781400960000,10000.0,0.0002411,30]
[424999719,1781400983000,1975.63,0.0002411,30]
[424999725,1781401686000,1000.0,0.00022432,30]
[424999906,1781401847000,-500.0,0.00014099,2]
[424999904,1781401847000,-2263.35501349,0.00013408,2]
[424999912,1781401847000,-142.29067893,0.00023154,7]
[424999905,1781401847000,-2736.64498651,0.00013408,2]
[424999910,1781401847000,-152.0,0.00023139,7]
[424999909,1781401847000,-152.0,0.00023139,7]
[424999911,1781401847000,-152.0,0.00023151,7]
[424999908,1781401847000,-390.4886321,0.00022545,2]
[424999907,1781401847000,-513.33852597,0.00016135,2]
[424999913,1781402198000,195.07,0.0002411,30]
[424999915,1781402266000,166.1322356,0.00024,120]
[424999937,1781403031000,-191.23910787,0.00013141,2]
[424999938,1781403031000,-270.98889213,0.0001368,7]
[424999939,1781403031000,-204.19475713,0.0001368,7]
[424999940,1781403031000,-500.0,0.0001368,2]
[424999942,1781403031000,-475.18364926,0.00013954,7]
[424999941,1781403031000,-500.0,0.0001368,2]
[424999943,1781403031000,-475.18364926,0.00014364,7]
[424999944,1781403031000,-475.18364926,0.00014774,7]
[424999945,1781403031000,-475.1836493,0.00015322,7]
[424999946,1781403031000,-2171.8045456,0.000176,2]
[424999948,1781403031000,-1939.24810548,0.0002,2]
[424999949,1781403031000,-277.900029,0.00022012,2]
[424999950,1781403031000,-277.900029,0.00022939,2]
[424999951,1781403031000,-205.55497896,0.0002294,2]
[424999952,1781403031000,-69.6295744,0.00023151,7]
[424999953,1781403031000,-84.9724928,0.00023151,7]
[424999954,1781403031000,-9.30932107,0.00023154,7]
[424999955,1781403031000,-152.0,0.00023159,7]
[424999956,1781403031000,-621.60785612,0.0002322,7]
[424999947,1781403031000,-160.0,0.00019899,2]
[425000064,1781403038000,-4889.02428162,0.000235,2]
[425000065,1781403038000,-143503.01105504,0.000235,2]
[425000053,1781403038000,-151.6,0.00023254,7]
[425000052,1781403038000,-179.17945651,0.0002322,7]
[425000066,1781403038000,-845.87700273,0.000235,2]
[425000054,1781403038000,-151.6,0.00023354,7]
[425000051,1781403038000,-369.90049882,0.0002322,7]
[425000063,1781403038000,-4289.45714459,0.000235,2]
[425000055,1781403038000,-370.91498575,0.00023424,2]
[425000058,1781403038000,-679.07657403,0.00023424,2]
[425000057,1781403038000,-382.36293583,0.00023424,2]
[425000060,1781403038000,-3057.32865163,0.00023454,2]
[425000059,1781403038000,-2329.59215652,0.00023454,2]
[425000062,1781403038000,-151.6,0.00023454,7]
[425000067,1781403038000,-2754.60127671,0.000235,2]
[425000070,1781403038000,-192522.9956228,0.000235,2]
[425000068,1781403038000,-24767.88122063,0.000235,2]
[425000069,1781403038000,-10209.98579081,0.000235,2]
[425000056,1781403038000,-423.47893802,0.00023424,2]
[425000089,1781403040000,-494.32088117,0.000235,2]
[425000164,1781403046000,-152.0,0.00023152,7]
[425000167,1781403046000,-416.8001,0.000235,2]
[425000197,1781403046000,-10990.25083971,0.000235,2]
[425000169,1781403046000,-6203.00000001,0.000235,2]
[425000165,1781403046000,-152.0,0.00023152,7]
[425000171,1781403046000,-75001.25776919,0.000235,2]
[425001033,1781404240000,-2088.35,0.00019212,2]
[425002075,1781404286000,5640.98692942,0.000241,30]
[425002077,1781404369000,-409.76424097,0.000198,2]
[425002078,1781404385000,-165.80703074,0.00020986,3]
[425002080,1781404966000,152.0,0.00022758,30]
[425002308,1781405440000,-1052.03229358,0.00020475,2]
[425002307,1781405440000,-163.50309963,0.00020173,7]
[425002304,1781405440000,-163.50309963,0.00019596,7]
[425002303,1781405440000,-163.50309963,0.00019212,7]
[425002306,1781405440000,-404.22211879,0.00020083,2]
[425002305,1781405440000,-354.04840234,0.00020083,2]
[425002399,1781405448000,-3123.03927639,0.00020475,2]
[425002428,1781405448000,-6035.28879233,0.00020475,2]
[425002391,1781405448000,-295.65558275,0.00020475,2]
[425002402,1781405448000,-318.66827949,0.00020475,2]
[425002654,1781405616000,172.0,0.00024109,30]
[425002657,1781405846000,77237.38569006,7.6e-05,2]
[425002656,1781405846000,1000.0,7.6e-05,2]
[425004459,1781406632000,-586.94081868,0.00011,2]
[425004457,1781406632000,-433.45811007,0.00011,2]
[425004568,1781406638000,-300.0,0.00011729,2]
[425004558,1781406638000,-1393.99802022,0.00011,2]
[425004560,1781406638000,-19347.28431781,0.000115,2]
[425004559,1781406638000,-300.0,0.00011499,2]
[425004561,1781406638000,-300.0,0.00011729,2]
[425004565,1781406638000,-300.0,0.00011729,2]
[425004563,1781406638000,-300.0,0.00011729,2]
[425004566,1781406638000,-300.0,0.00011729,2]
[425004564,1781406638000,-300.0,0.00011729,2]
[425004562,1781406638000,-300.0,0.00011729,2]
[425004570,1781406638000,-300.0,0.00011729,2]
[425004569,1781406638000,-300.0,0.00011729,2]
[425004571,1781406638000,-300.0,0.00011729,2]
[425004575,1781406638000,-300.0,0.00011729,2]
[425004573,1781406638000,-300.0,0.00011729,2]
[425004574,1781406638000,-300.0,0.00011729,2]
[425004572,1781406638000,-300.0,0.00011729,2]
[425004567,1781406638000,-300.0,0.00011729,2]
[425004607,1781406639000,-643.21738572,0.00012198,2]
[425004611,1781406639000,-720.0,0.00013159,2]
[425004612,1781406639000,-506.05239445,0.00013698,2]
[425004603,1781406639000,-500.0,0.00012198,2]
[425004602,1781406639000,-475.917283,0.00012198,2]
[425004599,1781406639000,-500.0,0.00012198,2]
[425004610,1781406639000,-420.0,0.0001263,2]
[425004601,1781406639000,-500.0,0.00012198,2]
[425004606,1781406639000,-500.0,0.00012198,2]
[425004608,1781406639000,-500.0,0.00012198,2]
[425004615,1781406639000,-1955.50027116,0.00014375,2]
[425004609,1781406639000,-8260.6271587,0.00012302,2]
[425004613,1781406639000,-596.40941958,0.00013698,2]
[425004614,1781406639000,-500.0,0.00013698,2]
[425004616,1781406639000,-864.0,0.00014475,2]
[425004617,1781406639000,-3209.84875717,0.00014543,2]
[425004618,1781406639000,-2997.4654384,0.00015237,2]
[425004621,1781406639000,-3209.84875717,0.00016989,2]
[425004620,1781406639000,-1955.50027114,0.00016921,2]
[425004623,1781406639000,-500.0,0.00017513,2]
[425004625,1781406639000,-244.0,0.00017514,2]
[425004598,1781406639000,-500.0,0.00012198,2]
[425004593,1781406639000,-500.0,0.00012198,2]
[425004582,1781406639000,-500.0,0.00012198,2]
[425004597,1781406639000,-500.0,0.00012198,2]
[425004622,1781406639000,-439.94185787,0.00017219,2]
[425004580,1781406639000,-629.66278056,0.00012198,2]
[425004576,1781406639000,-1090.98613629,0.00011729,2]
[425004578,1781406639000,-600.0,0.00011963,2]
[425004577,1781406639000,-2320.24776091,0.000118,5]
[425004579,1781406639000,-3209.84875719,0.00012098,2]
[425004585,1781406639000,-500.0,0.00012198,2]
[425004581,1781406639000,-500.0,0.00012198,2]
[425004583,1781406639000,-501.35533995,0.00012198,2]
[425004590,1781406639000,-500.0,0.00012198,2]
[425004584,1781406639000,-202.0993092,0.00012198,2]
[425004591,1781406639000,-500.0,0.00012198,2]
[425004589,1781406639000,-500.0,0.00012198,2]
[425004586,1781406639000,-500.0,0.00012198,2]
[425004588,1781406639000,-208.22497717,0.00012198,2]
[425004592,1781406639000,-500.0,0.00012198,2]
[425004587,1781406639000,-500.0,0.00012198,2]
[425004594,1781406639000,-500.0,0.00012198,2]
[425004604,1781406639000,-500.0,0.00012198,2]
[425004596,1781406639000,-500.0,0.00012198,2]
[425004595,1781406639000,-500.0,0.00012198,2]
[425004605,1781406639000,-500.0,0.00012198,2]
[425004626,1781406639000,-571.902389,0.00018032,2]
[425004600,1781406639000,-500.0,0.00012198,2]
[425004628,1781406639000,-793.80444345,0.00019141,2]
[425004652,1781406639000,-165.80703074,0.00021014,3]
[425004653,1781406639000,-571.902389,0.00021068,2]
[425004662,1781406639000,-312.78446426,0.00021517,7]
[425004665,1781406639000,-165.968231,0.00021918,2]